{"text_format":"1","workbook":"xlsx","n_sheets":1,"sheets":["Tilmelding Tenax Double"],"not_rendered":{"charts":0,"images":4,"macros":1,"external_links":0,"defined_names":2,"comments":0,"pivot_tables":0},"unopened":[],"bounds":{"document_bytes":16777216,"sheet_cells":100000,"rows_first":2000,"rows_last":500,"rows_between":2000,"halvings":0,"cell_chars":16384,"cell_head_chars":4096},"cells_cut":0,"cells_raw":0,"read":"whole","date_system":"1900"}

{"sheet":"Tilmelding Tenax Double","index":0,"n_rows":31,"n_cols":12,"rows_kept":31,"cut":false,"hidden":false,"merged":[[1,4,3,7],[6,1,6,11],[30,1,30,11],[28,1,28,11],[27,1,27,11]]}
["pl1"]
[]
[]
[]
[]
[]
[null,"TILMELDINGSSKEMA TIL TENAX DOUBLE"]
[]
[null,"KLUB NR. KLUB","HOLD NR.","Telefon nr.","Licens  spiller 1","Navn:","Snit:","Licens  spiller 2","Navn:","Snit:","SAMLET SNIT","DISTANCE"]
[null,null,null,null,null,null,null,null,null,null,{"$f":"IF(J10=\"\",\"\",SUM(G10+J10))","v":""},{"$f":"IF(K10=\"\",\"\",IF(CEILING(K10*15,10)<180,180,CEILING(K10*15,10)))","v":""}]
[null,null,null,null,null,null,null,null,null,null,{"$f":"IF(J11=\"\",\"\",SUM(G11+J11))","v":""},{"$f":"IF(K11=\"\",\"\",IF(CEILING(K11*15,10)<180,180,CEILING(K11*15,10)))","v":""}]
[null,null,null,null,null,null,null,null,null,{"$f":"IF(H12=\"\",\"\",VLOOKUP(H12,KLUBCPR,5,FALSE))","v":""},"",""]
[null,null,null,null,null,null,null,null,null,"","",""]
[null,null,null,null,null,null,null,null,null,"","",""]
[null,null,null,null,null,null,null,null,null,"","",""]
[null,null,null,null,null,null,null,null,null,"","",""]
[null,null,null,null,null,null,null,null,null,"","",""]
[null,null,null,null,null,null,null,null,null,"","",""]
[null,null,null,null,null,null,null,null,null,"","",""]
[null,null,null,null,null,null,null,null,null,"","",""]
[null,null,null,null,null,null,null,null,null,"","",""]
[null,null,null,null,null,null,null,null,null,"","",""]
[null,null,null,null,null,null,null,null,null,"","",""]
[null,null,null,null,null,null,null,null,null,"","",""]
[null,null,null,null,null,null,null,null,null,"","",""]
[null,null,null,null,null,null,null,null,null,null,{"$f":"IF(J26=\"\",\"\",SUM(G26+J26))","v":""},{"$f":"IF(K26=\"\",\"\",IF(CEILING(K26*15,10)<180,180,CEILING(K26*15,10)))","v":""}]
[null,null,null,null,null,null,null,null,null,null,"",""]
[null,"TILMELDINGEN SENDES TIL KARSTEN JØRGENSEN - kj@ddbu.dk"]
[null,"SIDSTE TILMELDING 18. OKT. 2015 – DDBU fremsender faktura til klubben på antal tilmeldte hold."]
[]
[null,"DER KAN KUN SKRIVES I DE GRÅ FELTER                              INDSKRIVES HOLD NR. - TELEFON NR. OG LICENS"]